fUST/lending_fUST_20240613
["ID","MTS","AMOUNT","RATE_DAILY","PERIOD"]
[329344817,1718262655858,-500.0,0.00017807,2]
[329344818,1718262655869,-500.0,0.00017808,2]
[329344819,1718262655881,-500.0,0.00017808,2]
[329344820,1718262655892,-348.78,0.00017808,2]
[329344821,1718262655903,-500.0,0.00017808,2]
[329344822,1718262655915,-615.15,0.00017808,2]
[329344823,1718262655932,-500.0,0.00017808,2]
[329344824,1718262655943,-500.0,0.00017808,2]
[329344825,1718262655971,-1128.07,0.00017808,2]
[329344826,1718262655984,-500.0,0.00017808,2]
[329344827,1718262655994,-500.0,0.00017808,2]
[329344828,1718262656008,-500.0,0.00017808,2]
[329344829,1718262656020,-500.0,0.00017808,2]
[329344830,1718262656052,-500.0,0.00017808,2]
[329344831,1718262656065,-500.0,0.00017808,2]
[329344832,1718262656094,-500.0,0.00017808,2]
[329344833,1718262656116,-500.0,0.00017808,2]
[329344834,1718262656137,-953.24,0.00017808,2]
[329344835,1718262656155,-500.0,0.00017808,2]
[329344836,1718262656168,-500.0,0.00017808,2]
[329344837,1718262656181,-500.0,0.00017808,2]
[329344838,1718262656201,-815.31,0.00017808,2]
[329344839,1718262656215,-500.0,0.00017808,2]
[329344840,1718262656241,-500.0,0.00017808,2]
[329344841,1718262656253,-704.15,0.00017808,2]
[329344844,1718262656275,-500.0,0.00017808,2]
[329344845,1718262656286,-500.0,0.00017808,2]
[329344847,1718262656296,-511.34,0.00017808,2]
[329344849,1718262656312,-500.0,0.00017808,2]
[329344851,1718262656326,-500.0,0.00017808,2]
[329344853,1718262656341,-500.0,0.00017808,2]
[329344854,1718262656353,-2713.38,0.00017808,2]
[329344856,1718262656369,-500.0,0.00017808,2]
[329344858,1718262656383,-500.0,0.00017808,2]
[329344860,1718262656396,-806.8,0.00017808,2]
[329344862,1718262656409,-500.0,0.00017808,2]
[329344863,1718262656422,-500.0,0.00017808,2]
[329344864,1718262656443,-500.0,0.00017808,2]
[329344865,1718262656486,-986.54,0.00017808,2]
[329344866,1718262656499,-1287.8,0.00017808,2]
[329344867,1718262656520,-362.8,0.00017894,2]
[329344868,1718262656544,-500.0,0.00017899,2]
[329344869,1718262656557,-500.0,0.00017899,2]
[329344870,1718262656570,-500.0,0.00017899,2]
[329344871,1718262656581,-500.0,0.00017899,2]
[329344872,1718262656594,-500.0,0.00017899,2]
[329344873,1718262656614,-500.0,0.00017899,2]
[329344874,1718262656628,-500.0,0.00017899,2]
[329344875,1718262656642,-500.0,0.00017899,2]
[329344876,1718262656655,-500.0,0.00017999,2]
[329344877,1718262656674,-500.0,0.00017999,2]
[329344878,1718262656693,-748.17,0.00017999,2]
[329344879,1718262656711,-748.17,0.00017999,2]
[329344880,1718262656732,-500.0,0.00017999,2]
[329344881,1718262656745,-500.0,0.00017999,2]
[329344882,1718262656756,-500.0,0.00017999,2]
[329344883,1718262656771,-500.0,0.00017999,2]
[329344884,1718262656784,-18343.37421295,0.00018,2]
[329344886,1718262656797,-36513.26324369,0.00018,2]
[329344887,1718262656820,-2765.7597697,0.00018,2]
[329344888,1718262656831,-476.76775304,0.00018,2]
[329344889,1718262656847,-876.95081653,0.00018,2]
[329344890,1718262656861,-1355.76865896,0.00018,2]
[329344891,1718262656881,-748.17,0.0001808,2]
[329344892,1718262656899,-3815.59,0.00018081,2]
[329344893,1718262656911,-1472.33,0.00018081,2]
[329344894,1718262656930,-500.0,0.00018082,2]
[329344895,1718262656944,-500.0,0.00018082,2]
[329344896,1718262656965,-500.0,0.00018082,2]
[329344897,1718262656984,-500.0,0.00018082,2]
[329344898,1718262656997,-161.46,0.00018082,2]
[329344899,1718262657022,-1128.07,0.00018082,2]
[329344900,1718262657043,-500.0,0.00018082,2]
[329344901,1718262657054,-500.0,0.00018082,2]
[329344902,1718262657065,-500.0,0.00018082,2]
[329344903,1718262657076,-500.0,0.00018082,2]
[329344904,1718262657086,-500.0,0.00018082,2]
[329344905,1718262657097,-500.0,0.00018082,2]
[329344906,1718262657108,-500.0,0.00018082,2]
[329344907,1718262657119,-500.0,0.00018082,2]
[329344908,1718262657137,-953.24,0.00018082,2]
[329344909,1718262657148,-500.0,0.00018082,2]
[329344910,1718262657159,-500.0,0.00018082,2]
[329344911,1718262657170,-500.0,0.00018082,2]
[329344912,1718262657181,-815.31,0.00018082,2]
[329344913,1718262657193,-500.0,0.00018082,2]
[329344914,1718262657204,-500.0,0.00018082,2]
[329344915,1718262657215,-704.15,0.00018082,2]
[329344916,1718262657240,-500.0,0.00018082,2]
[329344917,1718262657252,-500.0,0.00018082,2]
[329344918,1718262657263,-511.34,0.00018082,2]
[329344919,1718262657274,-500.0,0.00018082,2]
[329344920,1718262657292,-500.0,0.00018082,2]
[329344921,1718262657303,-500.0,0.00018082,2]
[329344922,1718262657316,-2713.38,0.00018082,2]
[329344923,1718262657327,-500.0,0.00018082,2]
[329344924,1718262657338,-500.0,0.00018082,2]
[329344925,1718262657348,-806.8,0.00018082,2]
[329344926,1718262657359,-500.0,0.00018082,2]
[329344927,1718262657370,-500.0,0.00018082,2]
[329344928,1718262657389,-986.54,0.00018082,2]
[329344929,1718262657408,-1287.8,0.00018082,2]
[329344930,1718262657422,-362.8,0.00018101,2]
[329344931,1718262657443,-621.40343405,0.00018174,2]
[329344932,1718262657482,-748.17,0.00018199,2]
[329344933,1718262657501,-748.17,0.00018199,2]
[329344934,1718262657518,-88888.0,0.000182,2]
[329344935,1718262657556,-1449.62517228,0.000182,2]
[329344936,1718262657675,-410.6106982,0.00018215,2]
[329344937,1718262657686,-748.17,0.00018298,2]
[329344938,1718262657706,-305.39116304,0.00018299,2]
[329344939,1718262657728,-748.17,0.00018299,2]
[329344940,1718262657747,-748.17,0.00018299,2]
[329344941,1718262657761,-748.17,0.00018299,2]
[329344942,1718262657777,-748.17,0.00018299,2]
[329344943,1718262657788,-748.17,0.00018299,2]
[329344944,1718262657799,-748.17,0.00018299,2]
[329344945,1718262657810,-748.17,0.00018299,2]
[329344946,1718262657840,-748.17,0.00018299,2]
[329344947,1718262657913,-748.17,0.00018299,2]
[329344948,1718262657951,-748.28779616,0.00018299,2]
[329344949,1718262657976,-325.11946222,0.00018299,2]
[329344950,1718262657988,-161383.90543482,0.000183,2]
[329344951,1718262658971,-300.39680964,0.00016436,2]
[329344952,1718262659011,-500.0,0.00016438,2]
[329344953,1718262659044,-500.0,0.00016438,2]
[329344954,1718262659055,-500.0,0.00016438,2]
[329344955,1718262659101,-500.0,0.00016438,2]
[329344956,1718262659112,-500.0,0.00016712,2]
[329344957,1718262659126,-500.0,0.00016712,2]
[329344958,1718262659140,-500.0,0.00016712,2]
[329344959,1718262659152,-500.0,0.00016986,2]
[329344960,1718262659182,-500.0,0.00016986,2]
[329344961,1718262659206,-500.0,0.00017999,2]
[329344962,1718262659218,-500.0,0.00017999,2]
[329344963,1718262659229,-500.0,0.00018299,2]
[329344964,1718262659252,-5610.17397793,0.000183,2]
[329345061,1718263834755,-408.80721945,0.00016338,2]
[329345063,1718263834767,-1547.32142877,0.00016436,2]
[329345065,1718263834779,-2604.19504929,0.00016437,2]
[329345067,1718263834789,-501.89141202,0.00016438,2]
[329345069,1718263834802,-500.0,0.00016438,2]
[329345072,1718263834813,-500.0,0.00016438,2]
[329345075,1718263834824,-500.0,0.00016438,2]
[329345077,1718263834836,-164.51254905,0.00016438,2]
[329345078,1718263834848,-500.0,0.00016438,2]
[329345080,1718263834860,-509.74139649,0.00016438,2]
[329345081,1718263834872,-502.85401392,0.00016438,2]
[329345082,1718263834883,-500.0,0.00016438,2]
[329345083,1718263834894,-500.0,0.00016438,2]
[329345084,1718263834905,-500.0,0.00016438,2]
[329345085,1718263834917,-500.0,0.00016438,2]
[329345086,1718263834928,-500.0,0.00016438,2]
[329345087,1718263834940,-500.0,0.00016438,2]
[329345088,1718263834952,-234.00502142,0.00016438,2]
[329345089,1718263834962,-500.0,0.00016438,2]
[329345090,1718263834973,-500.0,0.00016438,2]
[329345091,1718263834988,-500.0,0.00016438,2]
[329345092,1718263834999,-500.0,0.00016438,2]
[329345093,1718263835011,-500.0,0.00016438,2]
[329345094,1718263835053,-500.0,0.00016438,2]
[329345095,1718263835064,-500.0,0.00016438,2]
[329345096,1718263835076,-500.0,0.00016438,2]
[329345097,1718263835089,-500.0,0.00016438,2]
[329345098,1718263835099,-500.0,0.00016438,2]
[329345099,1718263835110,-500.0,0.00016438,2]
[329345100,1718263835122,-500.0,0.00016438,2]
[329345101,1718263835140,-500.0,0.00016438,2]
[329345102,1718263835157,-500.0,0.00016438,2]
[329345103,1718263835169,-500.0,0.00016438,2]
[329345104,1718263835188,-500.0,0.00016438,2]
[329345105,1718263835200,-500.0,0.00016438,2]
[329345106,1718263835232,-520.22200289,0.00016438,2]
[329345107,1718263835242,-500.0,0.00016438,2]
[329345108,1718263835252,-500.0,0.00016438,2]
[329345109,1718263835264,-526.5926666,0.00016438,2]
[329345110,1718263835275,-500.0,0.00016438,2]
[329345111,1718263835294,-987.06,0.00016438,2]
[329345112,1718263835306,-500.0,0.00016438,2]
[329345113,1718263835321,-505.36698428,0.00016438,2]
[329345114,1718263835338,-500.0,0.00016438,2]
[329345115,1718263835357,-500.0,0.00016438,2]
[329345116,1718263835368,-525.18777761,0.00016438,2]
[329345117,1718263835386,-500.0,0.00016438,2]
[329345118,1718263835398,-500.0,0.00016438,2]
[329345119,1718263835419,-500.0,0.00016438,2]
[329345120,1718263835434,-500.0,0.00016438,2]
[329345121,1718263835446,-500.0,0.00016438,2]
[329345122,1718263835475,-500.0,0.00016438,2]
[329345123,1718263835488,-500.0,0.00016438,2]
[329345124,1718263835525,-626.2902236,0.00016438,2]
[329345125,1718263835535,-500.0,0.00016438,2]
[329345126,1718263835546,-500.0,0.00016438,2]
[329345127,1718263835556,-408.74684565,0.00016438,2]
[329345128,1718263835571,-91.25315435,0.00016438,2]
[329345129,1718263835583,-500.0,0.00016438,2]
[329345130,1718263835608,-500.0,0.00016438,2]
[329345131,1718263835620,-500.0,0.00016438,2]
[329345132,1718263835630,-178.19683956,0.00016438,2]
[329345133,1718263835647,-321.80316044,0.00016438,2]
[329345134,1718263835657,-394.68151064,0.00016438,2]
[329345135,1718263835680,-46.73886425,0.00016438,2]
[329345136,1718263835690,-500.0,0.00016438,2]
[329345137,1718263835702,-5.98607663,0.00016438,2]
[329345204,1718263842319,-500.0,0.00016438,2]
[329345205,1718263842341,-1.49452285,0.00016438,2]
[329345207,1718263842356,-500.0,0.00016438,2]
[329345209,1718263842375,-506.45620108,0.00016438,2]
[329345211,1718263842391,-501.69543776,0.00016438,2]
[329345213,1718263842404,-500.0,0.00016438,2]
[329345216,1718263842443,-457.5668634,0.00016438,2]
[329345218,1718263842476,-500.0,0.00016438,2]
[329345220,1718263842490,-524.17901671,0.00016438,2]
[329345221,1718263842504,-500.0,0.00016438,2]
[329345224,1718263842525,-500.0,0.00016438,2]
[329345225,1718263842537,-904.33,0.00016438,2]
[329345227,1718263842548,-500.0,0.00016438,4]
[329345229,1718263842559,-500.0,0.00016438,2]
[329345231,1718263842573,-500.0,0.00016438,2]
[329345233,1718263842584,-514.12310409,0.00016438,2]
[329345235,1718263842595,-500.0,0.00016438,2]
[329345236,1718263842606,-250.0,0.00016438,2]
[329345238,1718263842632,-834.09,0.00016438,2]
[329345240,1718263842654,-500.0,0.00016438,2]
[329345242,1718263842666,-505.70546037,0.00016438,2]
[329345243,1718263842689,-500.0,0.00016438,2]
[329345245,1718263842701,-500.0,0.00016438,2]
[329345247,1718263842711,-500.0,0.00016438,2]
[329345249,1718263842745,-3656.61,0.00016438,2]
[329345251,1718263842768,-500.0,0.00016438,2]
[329345252,1718263842781,-500.0,0.00016438,2]
[329345254,1718263842792,-500.0,0.00016438,2]
[329345256,1718263842804,-500.0,0.00016438,2]
[329345258,1718263842815,-500.0,0.00016438,2]
[329345260,1718263842838,-500.0,0.00016438,2]
[329345262,1718263842857,-500.0,0.00016438,2]
[329345265,1718263842884,-503.67582291,0.00016438,2]
[329345267,1718263842897,-500.0,0.00016438,2]
[329345269,1718263842911,-508.84,0.00016438,2]
[329345271,1718263842925,-500.0,0.00016438,2]
[329345273,1718263842945,-500.0,0.00016438,2]
[329345276,1718263842960,-592.3,0.00016438,2]
[329345280,1718263842984,-500.0,0.00016438,2]
[329345284,1718263842999,-500.0,0.00016438,2]
[329345285,1718263843064,-500.0,0.00016438,2]
[329345287,1718263843075,-500.0,0.00016438,2]
[329345289,1718263843086,-500.0,0.00016438,2]
[329345290,1718263843113,-500.0,0.00016438,2]
[329345292,1718263843133,-500.0,0.00016438,2]
[329345293,1718263843149,-500.0,0.00016438,2]
[329345294,1718263843160,-500.0,0.00016438,2]
[329345295,1718263843173,-500.0,0.00016438,2]
[329345296,1718263843189,-500.0,0.00016438,2]
[329345297,1718263843205,-500.0,0.00016438,2]
[329345298,1718263843229,-500.0,0.00016438,2]
[329345299,1718263843241,-500.0,0.00016438,2]
[329345300,1718263843258,-503.48220934,0.00016438,2]
[329345301,1718263843269,-713.4,0.00016438,2]
[329345302,1718263843280,-500.0,0.00016438,2]
[329345303,1718263843291,-616.14,0.00016438,2]
[329345304,1718263843322,-500.0,0.00016438,2]
[329345305,1718263843334,-816.13,0.00016438,2]
[329345307,1718263843358,-1410.99,0.00016438,2]
[329345308,1718263843387,-500.0,0.00016438,2]
[329345309,1718263843441,-500.0,0.00016438,2]
[329345310,1718263843451,-372.78673862,0.00016438,2]
[329345311,1718263843483,-500.0,0.00016438,2]
[329345312,1718263843494,-500.0,0.00016438,2]
[329345313,1718263843506,-500.0,0.00016438,2]
[329345314,1718263843516,-500.0,0.00016438,2]
[329345315,1718263843526,-500.0,0.00016438,2]
[329345316,1718263843537,-500.0,0.00016438,2]
[329345317,1718263843549,-500.0,0.00016438,2]
[329345318,1718263843562,-500.0,0.00016438,2]
[329345319,1718263843577,-500.0,0.00016438,2]
[329345320,1718263843607,-507.84238571,0.00016438,2]
[329345321,1718263843618,-500.0,0.00016438,2]
[329345323,1718263843630,-500.0,0.00016438,2]
[329345324,1718263843641,-500.0,0.00016438,2]
[329345326,1718263843657,-500.0,0.00016438,2]
[329345328,1718263843669,-500.0,0.00016438,2]
[329345330,1718263843687,-739.57,0.00016438,2]
[329345331,1718263843698,-515.15991702,0.00016438,2]
[329345333,1718263843720,-500.0,0.00016438,2]
[329345335,1718263843736,-500.0,0.00016438,2]
[329345338,1718263843768,-500.0,0.00016438,2]
[329345352,1718263843927,-500.0,0.00016438,2]
[329345354,1718263843937,-500.0,0.00016438,2]
[329345356,1718263843948,-500.0,0.00016438,2]
[329345358,1718263843966,-500.0,0.00016438,2]
[329345360,1718263843983,-2733.95,0.00016438,2]
[329345362,1718263843994,-1180.49,0.00016438,2]
[329345364,1718263844009,-915.03,0.00016438,2]
[329345365,1718263844021,-500.0,0.00016438,2]
[329345367,1718263844052,-500.0,0.00016438,2]
[329345369,1718263844066,-504.96060568,0.00016438,2]
[329345370,1718263844091,-500.0,0.00016438,2]
[329345372,1718263844123,-500.0,0.00016711,2]
[329345374,1718263844148,-592.3,0.00016711,2]
[329345376,1718263844179,-500.0,0.00016711,2]
[329345378,1718263844208,-500.0,0.00016711,2]
[329345380,1718263844221,-500.0,0.00016712,2]
[329345381,1718263844235,-500.0,0.00016712,2]
[329345382,1718263844248,-500.0,0.00016712,2]
[329345383,1718263844262,-500.0,0.00016712,2]
[329345385,1718263844275,-500.0,0.00016712,2]
[329345386,1718263844287,-500.0,0.00016712,2]
[329345388,1718263844306,-500.0,0.00016712,2]
[329345389,1718263844319,-500.0,0.00016712,2]
[329345391,1718263844340,-500.0,0.00016712,2]
[329345394,1718263844385,-500.0,0.00016712,2]
[329345398,1718263844412,-500.0,0.00016712,2]
[329345399,1718263844447,-468.03106526,0.00016712,2]
[329345401,1718263844482,-500.0,0.00016712,2]
[329345403,1718263844494,-450.50051708,0.00016712,2]
[329345405,1718263844509,-987.06,0.00016712,2]
[329345407,1718263844525,-500.0,0.00016712,2]
[329345409,1718263844550,-500.0,0.00016712,2]
[329345410,1718263844561,-500.0,0.00016712,2]
[329345412,1718263844573,-500.0,0.00016712,2]
[329345414,1718263844585,-500.0,0.00016712,2]
[329345415,1718263844596,-500.0,0.00016712,2]
[329345416,1718263844607,-500.0,0.00016712,2]
[329345418,1718263844619,-500.0,0.00016712,2]
[329345421,1718263844651,-248.35772437,0.00016712,2]
[329345422,1718263844670,-510.36463853,0.00016712,2]
[329345424,1718263844680,-500.0,0.00016712,2]
[329345425,1718263844698,-500.0,0.00016712,2]
[329345427,1718263844712,-500.0,0.00016712,2]
[329345428,1718263844736,-500.0,0.00016712,2]
[329345429,1718263844747,-904.33,0.00016712,2]
[329345431,1718263844759,-834.09,0.00016712,2]
[329345433,1718263844790,-500.0,0.00016712,2]
[329345435,1718263844816,-500.0,0.00016712,2]
[329345436,1718263844827,-3656.61,0.00016712,2]
[329345438,1718263844838,-500.0,0.00016712,2]
[329345441,1718263844857,-500.0,0.00016712,2]
[329345443,1718263844871,-500.0,0.00016712,2]
[329345445,1718263844884,-500.0,0.00016712,2]
[329345449,1718263844923,-500.0,0.00016712,2]
[329345451,1718263844934,-500.0,0.00016712,2]
[329345453,1718263844945,-500.0,0.00016712,2]
[329345455,1718263844956,-500.0,0.00016712,2]
[329345458,1718263844973,-500.0,0.00016712,2]
[329345461,1718263844993,-500.0,0.00016712,2]
[329345464,1718263845005,-501.80438994,0.00016712,2]
[329345467,1718263845018,-500.0,0.00016712,2]
[329345470,1718263845038,-500.0,0.00016712,2]
[329345473,1718263845060,-500.0,0.00016712,2]
[329345476,1718263845072,-500.0,0.00016712,2]
[329345479,1718263845092,-500.0,0.00016712,2]
[329345483,1718263845110,-151.82228545,0.00016712,2]
[329345486,1718263845141,-713.4,0.00016712,2]
[329345488,1718263845154,-500.0,0.00016712,2]
[329345491,1718263845177,-616.14,0.00016712,2]
[329345493,1718263845196,-500.0,0.00016712,2]
[329345496,1718263845214,-816.13,0.00016712,2]
[329345498,1718263845228,-1410.99,0.00016712,2]
[329345501,1718263845243,-500.0,0.00016712,2]
[329345505,1718263845276,-500.0,0.00016712,2]
[329345509,1718263845288,-508.07087699,0.00016712,2]
[329345511,1718263845300,-500.0,0.00016712,2]
[329345515,1718263845315,-500.0,0.00016712,2]
[329345518,1718263845330,-500.0,0.00016712,2]
[329345521,1718263845346,-500.0,0.00016712,2]
[329345525,1718263845364,-500.0,0.00016712,2]
[329345528,1718263845382,-500.0,0.00016712,2]
[329345531,1718263845417,-500.0,0.00016712,2]
[329345534,1718263845449,-500.0,0.00016712,2]
[329345537,1718263845477,-739.57,0.00016712,2]
[329345540,1718263845488,-555.52,0.00016712,2]
[329345543,1718263845504,-500.0,0.00016712,2]
[329345546,1718263845519,-500.0,0.00016712,2]
[329345549,1718263845531,-2733.95,0.00016712,2]
[329345551,1718263845542,-1180.49,0.00016712,2]
[329345554,1718263845558,-915.03,0.00016712,2]
[329345557,1718263845574,-500.0,0.00016712,2]
[329345560,1718263845586,-500.0,0.00016712,2]
[329345564,1718263845605,-500.0,0.00016712,2]
[329345567,1718263845617,-869.7751034,0.00016886,2]
[329345570,1718263845628,-500.0,0.00016984,2]
[329345574,1718263845646,-500.0,0.00016985,2]
[329345576,1718263845658,-592.3,0.00016985,2]
[329345579,1718263845679,-500.0,0.00016985,2]
[329345582,1718263845690,-161.46,0.00016986,2]
[329345585,1718263845703,-500.0,0.00016986,2]
[329345588,1718263845716,-500.0,0.00016986,2]
[329345591,1718263845732,-500.0,0.00016986,2]
[329345595,1718263845762,-615.15,0.00016986,2]
[329345598,1718263845773,-500.0,0.00016986,2]
[329345601,1718263845796,-500.0,0.00016986,2]
[329345604,1718263845809,-987.06,0.00016986,2]
[329345607,1718263845821,-500.0,0.00016986,2]
[329345610,1718263845834,-500.0,0.00016986,2]
[329345613,1718263845846,-500.0,0.00016986,2]
[329345616,1718263845864,-505.79603447,0.00016986,2]
[329345619,1718263845878,-500.0,0.00016986,2]
[329345622,1718263845908,-500.0,0.00016986,2]
[329345625,1718263845920,-500.0,0.00016986,2]
[329345628,1718263845933,-500.0,0.00016986,2]
[329345631,1718263845945,-500.0,0.00016986,2]
[329345634,1718263845956,-904.33,0.00016986,2]
[329345637,1718263845966,-834.09,0.00016986,2]
[329345639,1718263845977,-3656.61,0.00016986,2]
[329345644,1718263845994,-500.0,0.00016986,2]
[329345647,1718263846014,-500.0,0.00016986,2]
[329345651,1718263846029,-500.0,0.00016986,2]
[329345654,1718263846045,-500.0,0.00016986,2]
[329345658,1718263846068,-500.0,0.00016986,2]
[329345661,1718263846079,-500.0,0.00016986,2]
[329345663,1718263846093,-500.0,0.00016986,2]
[329345666,1718263846105,-500.0,0.00016986,2]
[329345668,1718263846124,-500.0,0.00016986,2]
[329345669,1718263846146,-713.4,0.00016986,2]
[329345673,1718263846176,-500.0,0.00016986,2]
[329345676,1718263846187,-616.14,0.00016986,2]
[329345679,1718263846204,-500.0,0.00016986,2]
[329345682,1718263846218,-816.13,0.00016986,2]
[329345684,1718263846229,-1410.99,0.00016986,2]
[329345686,1718263846243,-500.0,0.00016986,2]
[329345689,1718263846265,-500.0,0.00016986,2]
[329345692,1718263846281,-500.0,0.00016986,2]
[329345694,1718263846294,-500.0,0.00016986,2]
[329345696,1718263846321,-500.0,0.00016986,2]
[329345699,1718263846334,-507.70759402,0.00016986,2]
[329345702,1718263846346,-500.0,0.00016986,2]
[329345709,1718263846383,-500.0,0.00016986,2]
[329345715,1718263846412,-500.0,0.00016986,2]
[329345720,1718263846442,-739.57,0.00016986,2]
[329345725,1718263846481,-2733.95,0.00016986,2]
[329345730,1718263846506,-1180.49,0.00016986,2]
[329345735,1718263846545,-915.03,0.00016986,2]
[329345738,1718263846557,-500.0,0.00016986,2]
[329345741,1718263846572,-500.0,0.00016986,2]
[329345744,1718263846584,-500.0,0.00016986,2]
[329345747,1718263846596,-153.0,0.00017,2]
[329345750,1718263846608,-869.77510336,0.00017215,2]
[329345752,1718263846620,-500.0,0.00017258,2]
[329345755,1718263846633,-500.0,0.00017259,2]
[329345758,1718263846645,-500.0,0.00017259,2]
[329345759,1718263846656,-592.3,0.00017259,2]
[329345766,1718263846679,-500.0,0.00017259,2]
[329345768,1718263846702,-500.0,0.0001726,2]
[329345771,1718263846712,-500.0,0.0001726,2]
[329345773,1718263846723,-348.78,0.0001726,2]
[329345775,1718263846748,-500.0,0.0001726,2]
[329345778,1718263846762,-500.0,0.0001726,2]
[329345781,1718263846774,-987.06,0.0001726,2]
[329345784,1718263846801,-500.0,0.0001726,2]
[329345786,1718263846812,-500.0,0.0001726,2]
[329345789,1718263846823,-500.0,0.0001726,2]
[329345792,1718263846833,-500.0,0.0001726,2]
[329345795,1718263846845,-500.0,0.0001726,2]
[329345797,1718263846855,-500.0,0.0001726,2]
[329345800,1718263846866,-904.33,0.0001726,2]
[329345801,1718263846876,-834.09,0.0001726,2]
[329345803,1718263846887,-3656.61,0.0001726,2]
[329345807,1718263846900,-500.0,0.0001726,2]
[329345809,1718263846914,-500.0,0.0001726,2]
[329345813,1718263846940,-500.0,0.0001726,2]
[329345815,1718263846950,-500.0,0.0001726,2]
[329345817,1718263846961,-500.0,0.0001726,2]
[329345819,1718263846971,-500.0,0.0001726,2]
[329345822,1718263846985,-500.0,0.0001726,2]
[329345824,1718263847000,-713.4,0.0001726,2]
[329345828,1718263847023,-616.14,0.0001726,2]
[329345831,1718263847049,-816.13,0.0001726,2]
[329345833,1718263847060,-1410.99,0.0001726,2]
[329345836,1718263847072,-500.0,0.0001726,2]
[329345839,1718263847084,-500.0,0.0001726,2]
[329345842,1718263847099,-500.0,0.0001726,2]
[329345845,1718263847109,-500.0,0.0001726,2]
[329345848,1718263847123,-500.0,0.0001726,2]
[329345851,1718263847135,-500.0,0.0001726,2]
[329345854,1718263847152,-500.0,0.0001726,2]
[329345861,1718263847186,-739.57,0.0001726,2]
[329345865,1718263847209,-2733.95,0.0001726,2]
[329345869,1718263847226,-1180.49,0.0001726,2]
[329345874,1718263847244,-915.03,0.0001726,2]
[329345878,1718263847259,-500.0,0.0001726,2]
[329345880,1718263847270,-205.4065629,0.00017393,2]
[329345884,1718263847292,-205.4065629,0.00017393,2]
[329345889,1718263847304,-500.0,0.00017533,2]
[329345892,1718263847329,-376.04969541,0.00017534,2]
[329345898,1718263847349,-500.0,0.00017534,2]
[329345903,1718263847377,-500.0,0.00017534,2]
[329345907,1718263847388,-500.0,0.00017534,2]
[329345909,1718263847398,-987.06,0.00017534,2]
[329345912,1718263847408,-500.0,0.00017534,2]
[329345915,1718263847419,-500.0,0.00017534,2]
[329345917,1718263847431,-500.0,0.00017534,2]
[329345920,1718263847452,-500.0,0.00017534,2]
[329345933,1718263847534,-500.0,0.00017534,2]
[329345935,1718263847558,-500.0,0.00017534,2]
[329345938,1718263847571,-904.33,0.00017534,2]
[329345941,1718263847586,-834.09,0.00017534,2]
[329345944,1718263847599,-3656.61,0.00017534,2]
[329345947,1718263847611,-500.0,0.00017534,2]
[329345951,1718263847645,-500.0,0.00017534,2]
[329345953,1718263847656,-500.0,0.00017534,2]